[Event "Manhemjunioren 2024"]
[Site "Goteborgs Schackcentrum, Vegatan 20, Gothenburg, Sweden"]
[Date "2024.04.06"]
[Round "5.5"]
[White "Ramovic, Isak"]
[Black "Bahl, Advaiya"]
[Result "0-1"]
[TimeControl "18 minutes + 10 seconds per move from move one."]
[WhiteFideId "1779281"]
[BlackFideId "1782002"]
[WhiteElo "1561"]
[BlackElo "1609"]

1. e4 {[%clk 00:18:15]} {[%emt 00:00:05]} e5 {[%clk 00:18:20]} {[%emt
00:00:02]} 2. Nf3 {[%clk 00:18:22]} {[%emt 00:00:03]} Nc6 {[%clk 00:18:29]} 3.
Bc4 {[%clk 00:18:30]} {[%emt 00:00:02]} Bc5 {[%clk 00:18:38]} 4. d3 {[%clk
00:18:40]} d6 {[%clk 00:18:42]} {[%emt 00:00:06]} 5. c3 {[%clk 00:18:48]}
{[%emt 00:00:02]} Nf6 {[%clk 00:18:40]} {[%emt 00:00:11]} 6. O-O {[%clk
00:18:54]} {[%emt 00:00:04]} O-O {[%clk 00:18:46]} {[%emt 00:00:04]} 7. Re1
{[%clk 00:19:02]} {[%emt 00:00:02]} h6 {[%clk 00:18:35]} {[%emt 00:00:22]} 8.
h3 {[%clk 00:19:11]} {[%emt 00:00:01]} Be6 {[%clk 00:18:37]} {[%emt 00:00:09]}
9. Bxe6 {[%clk 00:19:19]} {[%emt 00:00:02]} fxe6 {[%clk 00:18:45]} {[%emt
00:00:01]} 10. b4 {[%clk 00:19:21]} {[%emt 00:00:08]} Bb6 {[%clk 00:18:51]}
{[%emt 00:00:04]} 11. a4 {[%clk 00:19:23]} {[%emt 00:00:08]} a6 {[%clk
00:18:45]} {[%emt 00:00:16]} 12. Nbd2 {[%clk 00:19:07]} {[%emt 00:00:26]} Qe8
{[%clk 00:18:32]} {[%emt 00:00:22]} 13. Nf1 {[%clk 00:19:02]} {[%emt 00:00:14]}
d5 {[%clk 00:18:07]} {[%emt 00:00:36]} 14. Ng3 {[%clk 00:17:11]} {[%emt
00:02:00]} d4 {[%clk 00:17:56]} {[%emt 00:00:22]} 15. c4 {[%clk 00:17:09]}
{[%emt 00:00:12]} Nxb4 {[%clk 00:17:16]} {[%emt 00:00:49]} 16. a5 {[%clk
00:15:17]} {[%emt 00:02:03]} Bc5 {[%clk 00:16:54]} {[%emt 00:00:32]} 17. Ba3
{[%clk 00:14:31]} {[%emt 00:00:56]} b6 {[%clk 00:15:12]} {[%emt 00:01:51]} 18.
axb6 {[%clk 00:14:02]} {[%emt 00:00:40]} cxb6 {[%clk 00:15:20]} {[%emt
00:00:02]} 19. Nxe5 {[%clk 00:13:54]} {[%emt 00:00:17]} Nc6 {[%clk 00:14:28]}
{[%emt 00:01:03]} 20. Bxc5 {[%clk 00:13:48]} {[%emt 00:00:17]} bxc5 {[%clk
00:14:35]} {[%emt 00:00:03]} 21. Nxc6 {[%clk 00:12:53]} {[%emt 00:01:05]} Qxc6
{[%clk 00:14:42]} {[%emt 00:00:03]} 22. Qa4 {[%emt 00:00:25]} Qxa4 {[%clk
00:13:51]} {[%emt 00:00:58]} 23. Rxa4 {[%clk 00:12:49]} {[%emt 00:00:02]} Ra7
{[%clk 00:13:05]} {[%emt 00:00:55]} 24. Rea1 {[%clk 00:11:56]} {[%emt
00:01:03]} Rfa8 {[%clk 00:13:09]} {[%emt 00:00:06]} 25. Ra5 {[%clk 00:11:08]}
{[%emt 00:00:58]} Nd7 {[%clk 00:13:06]} {[%emt 00:00:13]} 26. Kf1 {[%clk
00:10:02]} {[%emt 00:01:16]} Kf7 {[%clk 00:13:10]} {[%emt 00:00:06]} 27. f4
{[%clk 00:08:54]} {[%emt 00:01:18]} g6 {[%clk 00:12:59]} {[%emt 00:00:21]} 28.
Ke2 {[%clk 00:08:26]} {[%emt 00:00:38]} Kf6 {[%clk 00:13:05]} {[%emt 00:00:04]}
29. e5+ {[%clk 00:08:07]} {[%emt 00:00:29]} Ke7 {[%clk 00:12:58]} {[%emt
00:00:17]} 30. Ne4 {[%clk 00:08:03]} {[%emt 00:00:14]} h5 {[%clk 00:12:05]}
{[%emt 00:01:04]} 31. g4 {[%clk 00:06:05]} {[%emt 00:02:08]} h4 {[%clk
00:11:28]} {[%emt 00:00:47]} 32. Ng5 {[%clk 00:03:42]} {[%emt 00:02:32]} Rb8
{[%clk 00:10:54]} {[%emt 00:00:44]} 33. Rxa6 {[%clk 00:02:48]} {[%emt
00:01:05]} Rxa6 {[%clk 00:10:59]} {[%emt 00:00:05]} 34. Rxa6 {[%clk 00:02:55]}
{[%emt 00:00:03]} Rb6 {[%clk 00:10:49]} {[%emt 00:00:19]} 35. Rxb6 {[%clk
00:02:46]} {[%emt 00:00:20]} Nxb6 {[%clk 00:10:58]} {[%emt 00:00:01]} 36. Nf3
{[%clk 00:02:41]} {[%emt 00:00:15]} Na4 {[%clk 00:10:58]} {[%emt 00:00:10]} 37.
Nxh4 {[%clk 00:02:38]} {[%emt 00:00:13]} Kf7 {[%clk 00:11:06]} {[%emt
00:00:02]} 38. f5 {[%clk 00:02:03]} {[%emt 00:00:44]} gxf5 {[%clk 00:11:10]}
{[%emt 00:00:06]} 39. gxf5 {[%clk 00:02:09]} {[%emt 00:00:04]} exf5 {[%clk
00:11:18]} {[%emt 00:00:03]} 40. Nxf5 {[%clk 00:00:54]} {[%emt 00:01:25]} Ke6
{[%clk 00:11:25]} {[%emt 00:00:03]} 41. Ng3 {[%clk 00:00:16]} {[%emt 00:00:48]}
Kxe5 {[%clk 00:11:32]} {[%emt 00:00:03]} 42. h4 {[%clk 00:00:15]} {[%emt
00:00:12]} Kf4 {[%clk 00:11:32]} {[%emt 00:00:10]} 43. h5 {[%clk 00:00:13]}
{[%emt 00:00:12]} Kg5 {[%clk 00:11:22]} {[%emt 00:00:20]} 44. Ne4+ {[%clk
00:00:13]} {[%emt 00:00:10]} Kxh5 {[%clk 00:11:29]} {[%emt 00:00:02]} 45. Kd2
{[%clk 00:00:21]} {[%emt 00:00:02]} Kg4 {[%clk 00:11:35]} {[%emt 00:00:04]} 46.
Kc2 {[%clk 00:00:28]} {[%emt 00:00:03]} Kf3 {[%clk 00:11:38]} {[%emt 00:00:06]}
47. Kb3 {[%clk 00:00:36]} {[%emt 00:00:02]} Ke3 {[%clk 00:11:27]} {[%emt
00:00:21]} 48. Kxa4 {[%clk 00:00:42]} {[%emt 00:00:04]} Kxd3 {[%clk 00:11:35]}
{[%emt 00:00:02]} 49. Nxc5+ {[%clk 00:00:50]} {[%emt 00:00:02]} Kxc4 {[%clk
00:11:43]} {[%emt 00:00:03]} 50. Ka3 {[%clk 00:00:14]} {[%emt 00:00:46]} Kxc5
{[%clk 00:11:51]} {[%emt 00:00:02]} 51. Kb3 {[%clk 00:00:23]} Kd5 {[%clk
00:11:58]} {[%emt 00:00:02]} 52. Kc2 {[%clk 00:00:31]} {[%emt 00:00:03]} Kc4
{[%clk 00:11:41]} {[%emt 00:00:27]} 53. Kd2 {[%clk 00:00:22]} {[%emt 00:00:19]}
d3 {[%clk 00:11:44]} {[%emt 00:00:07]} 54. Kc1 {[%clk 00:00:16]} {[%emt
00:00:16]} Kc3 {[%clk 00:11:51]} {[%emt 00:00:03]} 55. Kd1 {[%clk 00:00:23]}
{[%emt 00:00:03]} d2 {[%clk 00:11:58]} {[%emt 00:00:02]} 56. Ke1 {[%clk
00:00:18]} 0-1

[Event "Manhemjunioren 2024"]
[Site "Goteborgs Schackcentrum, Vegatan 20, Gothenburg, Sweden"]
[Date "2024.04.06"]
[Round "5.6"]
[White "Lappas Lonnermark, Johannes"]
[Black "Murugaraja, Yogeshwer"]
[Result "1-0"]
[TimeControl "18 minutes + 10 seconds per move from move one."]
[WhiteFideId "1773437"]
[BlackFideId "1779389"]
[WhiteElo "1577"]
[BlackElo "1587"]

1. e4 {[%clk 00:18:18]} {[%emt 00:00:01]} c5 {[%clk 00:18:19]} {[%emt
00:00:01]} 2. Nf3 {[%clk 00:18:25]} {[%emt 00:00:02]} d6 {[%clk 00:18:28]}
{[%emt 00:00:02]} 3. Bb5+ {[%clk 00:18:32]} {[%emt 00:00:03]} Bd7 {[%clk
00:18:29]} {[%emt 00:00:09]} 4. Bxd7+ {[%clk 00:18:38]} {[%emt 00:00:04]} Qxd7
{[%clk 00:18:38]} {[%emt 00:00:01]} 5. c4 {[%clk 00:18:39]} {[%emt 00:00:09]}
e5 {[%clk 00:18:36]} {[%emt 00:00:12]} 6. O-O {[%clk 00:18:45]} {[%emt
00:00:04]} Nf6 {[%clk 00:18:43]} {[%emt 00:00:03]} 7. Nc3 {[%clk 00:18:51]}
{[%emt 00:00:04]} Be7 {[%clk 00:18:44]} {[%emt 00:00:09]} 8. d3 {[%clk
00:18:40]} {[%emt 00:00:21]} h6 {[%clk 00:18:49]} {[%emt 00:00:06]} 9. Re1
{[%clk 00:18:46]} {[%emt 00:00:03]} O-O {[%clk 00:18:56]} {[%emt 00:00:03]} 10.
h3 {[%clk 00:17:53]} {[%emt 00:01:03]} Nc6 {[%clk 00:19:01]} {[%emt 00:00:05]}
11. Be3 {[%clk 00:17:58]} {[%emt 00:00:04]} a6 {[%clk 00:18:37]} {[%emt
00:00:35]} 12. Nd2 {[%clk 00:17:13]} {[%emt 00:00:55]} Rab8 {[%clk 00:17:28]}
{[%emt 00:01:19]} 13. a4 {[%clk 00:16:45]} {[%emt 00:00:37]} Nb4 {[%clk
00:16:49]} {[%emt 00:00:49]} 14. Nf1 {[%clk 00:16:39]} {[%emt 00:00:17]} a5
{[%clk 00:15:57]} {[%emt 00:01:02]} 15. Bc1 {[%clk 00:16:19]} {[%emt 00:00:30]}
Na6 {[%clk 00:15:18]} {[%emt 00:00:47]} 16. Ne3 {[%clk 00:15:23]} {[%emt
00:01:09]} Nc7 {[%clk 00:14:55]} {[%emt 00:00:34]} 17. Ned5 {[%clk 00:13:51]}
{[%emt 00:01:41]} Ncxd5 {[%clk 00:14:47]} {[%emt 00:00:17]} 18. exd5 {[%clk
00:13:11]} {[%emt 00:00:51]} Rfe8 {[%clk 00:13:52]} {[%emt 00:01:05]} 19. Ne4
{[%clk 00:13:17]} {[%emt 00:00:04]} Nxe4 {[%clk 00:13:54]} {[%emt 00:00:08]} 20.
dxe4 {[%clk 00:13:21]} {[%emt 00:00:05]} b6 {[%clk 00:13:17]} {[%emt 00:00:47]}
21. Ra3 {[%clk 00:13:26]} {[%emt 00:00:05]} f5 {[%clk 00:12:36]} {[%emt
00:00:50]} 22. Rg3 {[%clk 00:11:53]} {[%emt 00:01:43]} f4 {[%clk 00:12:23]}
{[%emt 00:00:23]} 23. Rg6 {[%clk 00:11:57]} {[%emt 00:00:06]} Bg5 {[%clk
00:12:19]} {[%emt 00:00:11]} 24. Qh5 {[%clk 00:11:53]} {[%emt 00:00:17]} Kh7
{[%clk 00:10:58]} {[%emt 00:01:29]} 25. Rxg5 {[%clk 00:11:14]} {[%emt
00:00:52]} Rg8 {[%clk 00:10:14]} {[%emt 00:00:52]} 26. Rg6 {[%clk 00:10:27]}
{[%emt 00:00:58]} Qf7 {[%clk 00:09:54]} {[%emt 00:00:26]} 27. Rxh6+ {[%clk
00:10:19]} 1-0

[Event "Manhemjunioren 2024"]
[Site "Goteborgs Schackcentrum, Vegatan 20, Gothenburg, Sweden"]
[Date "2024.04.06"]
[Round "5.7"]
[White "Sivarama, Saadhvik"]
[Black "Holma, Tim"]
[Result "1-0"]
[TimeControl "18 minutes + 10 seconds per move from move one."]
[WhiteFideId "1773720"]
[BlackFideId "1785850"]
[WhiteElo "1566"]
[BlackElo "1430"]

1. e4 {[%clk 00:18:16]} {[%emt 00:00:03]} e5 {[%clk 00:18:18]} {[%emt
00:00:03]} 2. Bc4 {[%clk 00:18:21]} {[%emt 00:00:05]} Nf6 {[%clk 00:18:22]}
{[%emt 00:00:07]} 3. d4 {[%clk 00:18:27]} {[%emt 00:00:04]} Nxe4 {[%clk
00:17:59]} {[%emt 00:00:33]} 4. dxe5 {[%clk 00:18:33]} {[%emt 00:00:03]} Bc5
{[%clk 00:17:28]} {[%emt 00:00:41]} 5. Qd5 {[%clk 00:17:55]} {[%emt 00:00:48]}
Bxf2+ {[%clk 00:17:14]} {[%emt 00:00:23]} 6. Ke2 {[%clk 00:17:56]} {[%emt
00:00:10]} O-O {[%clk 00:15:35]} {[%emt 00:01:50]} 7. Qxe4 {[%clk 00:17:53]}
{[%emt 00:00:11]} Qh4 {[%clk 00:14:48]} {[%emt 00:00:58]} 8. Qxh4 {[%clk
00:16:05]} {[%emt 00:01:58]} Bxh4 {[%clk 00:14:53]} {[%emt 00:00:04]} 9. Nf3
{[%clk 00:16:08]} {[%emt 00:00:08]} Be7 {[%clk 00:14:41]} {[%emt 00:00:23]} 10.
Rf1 {[%clk 00:15:51]} {[%emt 00:00:27]} Nc6 {[%clk 00:14:03]} {[%emt 00:00:48]}
11. Nc3 {[%clk 00:15:38]} {[%emt 00:00:22]} d6 {[%clk 00:13:30]} {[%emt
00:00:44]} 12. exd6 {[%clk 00:15:23]} {[%emt 00:00:25]} Bxd6 {[%clk 00:13:31]}
{[%emt 00:00:08]} 13. Kf2 {[%clk 00:15:20]} {[%emt 00:00:13]} Bf5 {[%clk
00:12:39]} {[%emt 00:01:04]} 14. Bb3 {[%clk 00:14:34]} {[%emt 00:00:55]} Bc5+
{[%clk 00:12:03]} {[%emt 00:00:46]} 15. Be3 {[%clk 00:14:34]} {[%emt 00:00:09]}
Bxe3+ {[%clk 00:11:55]} {[%emt 00:00:17]} 16. Kxe3 {[%clk 00:14:41]} {[%emt
00:00:04]} Rfe8+ {[%clk 00:11:43]} {[%emt 00:00:23]} 17. Kf2 {[%clk 00:14:47]}
{[%emt 00:00:03]} Rad8 {[%clk 00:10:37]} {[%emt 00:01:16]} 18. Kg1 {[%clk
00:14:43]} {[%emt 00:00:14]} Nb4 {[%clk 00:09:54]} {[%emt 00:00:54]} 19. Rac1
{[%clk 00:14:26]} {[%emt 00:00:26]} c6 {[%clk 00:09:08]} {[%emt 00:00:57]} 20.
Ng5 {[%clk 00:14:10]} {[%emt 00:00:26]} Be6 {[%clk 00:08:02]} {[%emt 00:01:16]}
21. Nxe6 {[%clk 00:14:04]} {[%emt 00:00:15]} fxe6 {[%clk 00:08:05]} {[%emt
00:00:07]} 22. a3 {[%clk 00:14:04]} {[%emt 00:00:11]} Nd5 {[%clk 00:07:52]}
{[%emt 00:00:23]} 23. Nxd5 {[%clk 00:14:02]} {[%emt 00:00:12]} cxd5 {[%clk
00:07:33]} {[%emt 00:00:28]} 24. Rfe1 {[%clk 00:14:05]} {[%emt 00:00:07]} Kf7
{[%clk 00:07:07]} {[%emt 00:00:37]} 25. Rf1+ {[%clk 00:14:04]} {[%emt
00:00:11]} Kg6 {[%clk 00:07:05]} {[%emt 00:00:13]} 26. Rce1 {[%clk 00:13:56]}
{[%emt 00:00:15]} e5 {[%clk 00:06:55]} {[%emt 00:00:22]} 27. Rd1 {[%clk
00:13:37]} {[%emt 00:00:29]} Re7 {[%clk 00:06:15]} {[%emt 00:00:51]} 28. Bxd5
{[%clk 00:13:21]} {[%emt 00:00:25]} Red7 {[%clk 00:06:06]} {[%emt 00:00:19]} 29.
Be4+ {[%clk 00:13:24]} {[%emt 00:00:07]} Kh6 {[%clk 00:06:00]} {[%emt
00:00:16]} 30. Rde1 {[%clk 00:13:16]} {[%emt 00:00:18]} Rd2 {[%clk 00:05:18]}
{[%emt 00:00:52]} 31. Re3 {[%clk 00:13:12]} {[%emt 00:00:14]} g6 {[%clk
00:05:04]} {[%emt 00:00:25]} 32. Bd3 {[%clk 00:12:59]} {[%emt 00:00:23]} Re8
{[%clk 00:04:31]} {[%emt 00:00:43]} 33. Re2 {[%clk 00:11:52]} {[%emt 00:01:17]}
Rxe2 {[%clk 00:04:27]} {[%emt 00:00:14]} 34. Bxe2 {[%clk 00:12:00]} {[%emt
00:00:02]} e4 {[%clk 00:04:13]} {[%emt 00:00:23]} 35. Re1 {[%clk 00:12:00]}
{[%emt 00:00:10]} e3 {[%emt 00:00:55]} 36. Bf3 {[%clk 00:11:44]} {[%emt
00:00:07]} b6 {[%clk 00:03:32]} {[%emt 00:00:26]} 37. Kf1 {[%clk 00:11:48]}
{[%emt 00:00:06]} Kg5 {[%clk 00:03:10]} {[%emt 00:00:32]} 38. Ke2 {[%clk
00:11:35]} {[%emt 00:00:23]} Kf4 {[%clk 00:02:33]} {[%emt 00:00:47]} 39. g3+
{[%clk 00:11:37]} {[%emt 00:00:08]} Kf5 {[%clk 00:02:32]} {[%emt 00:00:11]} 40.
Kd3 {[%clk 00:11:39]} {[%emt 00:00:07]} Rd8+ {[%clk 00:01:28]} {[%emt
00:01:15]} 41. Kxe3 {[%clk 00:11:45]} {[%emt 00:00:04]} Re8+ {[%clk 00:01:33]}
{[%emt 00:00:05]} 42. Kd2 {[%clk 00:11:51]} {[%emt 00:00:04]} Rxe1 {[%clk
00:01:37]} {[%emt 00:00:05]} 43. Kxe1 {[%clk 00:11:59]} {[%emt 00:00:03]} g5
{[%clk 00:01:36]} {[%emt 00:00:11]} 44. Ke2 {[%clk 00:11:59]} {[%emt 00:00:10]}
h6 {[%clk 00:01:39]} {[%emt 00:00:07]} 45. b4 {[%clk 00:11:59]} {[%emt
00:00:10]} Ke5 {[%clk 00:01:47]} {[%emt 00:00:02]} 46. Kd3 {[%clk 00:12:00]}
{[%emt 00:00:08]} b5 {[%clk 00:01:22]} {[%emt 00:00:35]} 47. c4 {[%clk
00:11:56]} {[%emt 00:00:14]} bxc4+ {[%clk 00:00:32]} {[%emt 00:00:59]} 48. Kxc4
{[%clk 00:12:04]} {[%emt 00:00:03]} Kd6 {[%clk 00:00:38]} {[%emt 00:00:04]} 49.
Kd4 {[%clk 00:12:09]} {[%emt 00:00:05]} Ke6 {[%clk 00:00:24]} {[%emt 00:00:25]}
50. b5 {[%clk 00:11:58]} {[%emt 00:00:22]} Kd6 {[%clk 00:00:20]} {[%emt
00:00:13]} 51. a4 {[%clk 00:12:02]} {[%emt 00:00:05]} Ke6 {[%clk 00:00:16]}
{[%emt 00:00:14]} 52. a5 {[%clk 00:12:08]} {[%emt 00:00:04]} Kd6 {[%clk
00:00:24]} {[%emt 00:00:01]} 53. b6 {[%clk 00:12:11]} {[%emt 00:00:08]} a6
{[%clk 00:00:15]} {[%emt 00:00:19]} 54. Kc4 {[%clk 00:12:07]} {[%emt 00:00:13]}
Kd7 {[%clk 00:00:16]} {[%emt 00:00:09]} 55. Kc5 {[%clk 00:12:14]} {[%emt
00:00:03]} Kc8 {[%clk 00:00:20]} {[%emt 00:00:05]} 56. Kc6 {[%clk 00:12:19]}
{[%emt 00:00:06]} Kb8 {[%clk 00:00:17]} {[%emt 00:00:14]} 57. b7 {[%clk
00:12:23]} {[%emt 00:00:05]} g4 {[%clk 00:00:12]} {[%emt 00:00:12]} 58. Bxg4
{[%clk 00:12:21]} {[%emt 00:00:14]} h5 {[%clk 00:00:18]} {[%emt 00:00:04]} 59.
Bxh5 {[%clk 00:12:28]} {[%emt 00:00:02]} Ka7 {[%clk 00:00:21]} {[%emt
00:00:09]} 60. Bf3 {[%clk 00:12:32]} {[%emt 00:00:06]} Kb8 {[%clk 00:00:27]}
{[%emt 00:00:04]} 61. h4 {[%clk 00:12:38]} {[%emt 00:00:04]} Ka7 {[%clk
00:00:28]} {[%emt 00:00:09]} 62. h5 {[%clk 00:12:47]} {[%emt 00:00:01]} 1-0